Workbook

Sheet offerta economica LOTTO 2
B2: Procedura aperta di carattere comunitario, ai sensi dell’art. 55, comma 5 del D.lgs. n. 163 del 12/04/2006, suddivisa in quattro lotti, volta all’affidamento dei «Servizi di gestione integrata e recapito della corrispondenza automatizzata dell’INPS»
B20: ISTITUTO NAZIONALE PREVIDENZA SOCIALE
B21: Direzione Centrale Risorse Strumentali
B22: CENTRALE UNICA ACQUISTI
G28: OFFERTA ECONOMICA
G29: ( Allegato 4C al Disciplinare di Gara )
G30: LOTTO 3 - Emilia-Romagna, Marche, Umbria, Toscana, Lazio, Direzione Generale e Sardegna;
G31: Procedura aperta di carattere comunitario, ai sensi dell’art. 55, comma 5, del D.Lgs. 163 del 12 aprile 2006, suddivisa in quattro lotti, volta all’affidamento dei “Servizi di gestione integrata e recapito della corrispondenza automatizzata dell'INPS”
J34: Via Ciro il Grande, 21 – 00144 Roma
J35: tel. +390659054322 - fax +390659054240
J36: C.F. 80078750587 - P.IVA 02121151001
B54: Dichiarazione dell'Offerta economica per il Lotto 3
B58: Il sottoscritto
B60: nato a | P60: il
B62: in qualità di rappresentante legale dell'operatore economico:
B65: (denominazione o ragione sociale)
B67: con sede in
B69: p. IVA | L69: C.F.
B72: presenta la seguente Offerta Economica ed accetta esplicitamente ed incondizionatamente tutte le
B73: obbligazioni e le condizioni contenute nel Bando di Gara, nel Disciplinare di Gara, nel Capitolato Tecnico,
B74: nello Schema di Contratto e negli altri allegati, dichiarando di essere disposto ad assumere l’affidamento
B75: dei: “Servizi di gestione integrata e recapito della corrispondenza automatizzata dell'INPS”
B76: per il LOTTO 3 - Emilia-Romagna, Marche, Umbria, Toscana, Lazio, Direzione Generale e Sardegna
J81: OFFERTA ECONOMICA
B83: in cifre (IVA esclusa) | H83: =S140 -> 0
B85: in lettere (IVA esclusa) | H85: =valoreinlettere(H83) -> zero/00
J88: RIBASSO OFFERTO | M88: =U142 -> 1
B95: Scheda per il calcolo dell'Offerta economica - Lotto 3
B97: Istruzioni : | G97: inserire esclusivamente il valore percentuale della copertura CAP diretta, e le tariffe, offerte per ciascun porto, IVA esclusa.
L99: % CAP copertura diretta dell'Appaltatore | P99: 1 | R99: % CAP copertura Servizio Universale | U99: =100%-P99 -> 0
B101: BASE D'ASTA LOTTO 3 | L101: QUOTA Valore recapito diretto | R101: QUOTA Valore Servizio Universale
B102: Posta massiva | C102: BACINI | D102: PORTI | E102: volumi totali | F102: % distrib. | G102: QTA' annuale | H102: tariffa IVA esclusa | I102: valore annuale | J102: VALORE triennale | L102: QTA' annuale | M102: % | N102: tariffa OFFERTA IVA esclusa | O102: valore annuale | P102: VALORE triennale | R102: QTA' annuale | S102: tariffa IVA esente | T102: valore annuale | U102: VALORE triennale
C103: AM | D103: I porto | E103: 8655000 | F103: 0.1017206403 | G103: 880691.2934 | H103: 0.23 | I103: =G103*H103 -> 202558.9975 | J103: =I103*3 -> 607676.9924 | L103: =ROUND(G103*M103,0) -> 880691 | M103: =$P$99 -> 1 | O103: =L103*N103 -> 0 | P103: =O103*3 -> 0 | R103: =ROUND(G103-L103,0) -> 0 | S103: 0.28 | T103: =R103*S103 -> 0 | U103: =T103*3 -> 0
D104: II porto | E104: 8655000 | F104: 0.01980554873 | G104: 171455.7452 | H104: 0.41 | I104: =G104*H104 -> 70296.85552 | J104: =I104*3 -> 210890.5666 | L104: =ROUND(G104*M104,0) -> 171456 | M104: =$P$99 -> 1 | O104: =L104*N104 -> 0 | P104: =O104*3 -> 0 | R104: =ROUND(G104-L104,0) -> 0 | S104: 0.5 | T104: 0 | U104: =T104*3 -> 0
D105: III porto | E105: 8655000 | F105: 6.845622184e-08 | G105: 0.5924886 | H105: 0.94 | I105: 0.556939284 | J105: 1.670817852 | L105: 1 | M105: 1 | O105: 0 | P105: 0 | R105: 0 | S105: 1.15 | T105: 0 | U105: 0
C106: CP | D106: I porto | E106: 8655000 | F106: 0.1468377744 | G106: 1271312.774 | H106: 0.35 | I106: 444959.471 | J106: 1334878.413 | L106: 1271313 | M106: 1 | O106: 0 | P106: 0 | R106: 0 | S106: 0.43 | T106: 0 | U106: 0
D107: II porto | E107: 8655000 | F107: 0.01444371516 | G107: 125038.5929 | H107: 0.61 | I107: 76273.54168 | J107: 228820.625 | L107: 125039 | M107: 1 | O107: 0 | P107: 0 | R107: 0 | S107: 0.75 | T107: 0 | U107: 0
D108: III porto | E108: 8655000 | F108: 2.053686655e-07 | G108: 1.7774658 | H108: 0.98 | I108: 1.741916484 | J108: 5.225749452 | L108: 2 | M108: 1 | O108: 0 | P108: 0 | R108: 0 | S108: 1.2 | T108: 0 | U108: 0
C109: EU | D109: I porto | E109: 8655000 | F109: 0.6614549576 | G109: 5726837.94 | H109: 0.43 | I109: 2462540.314 | J109: 7387620.943 | L109: 5726838 | M109: 1 | O109: 0 | P109: 0 | R109: 0 | S109: 0.53 | T109: 0 | U109: 0
D110: II porto | E110: 8655000 | F110: 0.04333282265 | G110: 375130.298 | H110: 0.82 | I110: 307606.8444 | J110: 922820.5331 | L110: 375130 | M110: 1 | O110: 0 | P110: 0 | R110: 0 | S110: 1 | T110: 0 | U110: 0
D111: III porto | E111: 8655000 | F111: 4.791935528e-07 | G111: 4 | H111: 1.02 | I111: 4.08 | J111: 12.24 | L111: 4 | M111: 1 | O111: 0 | P111: 0 | R111: 0 | S111: 1.25 | T111: 0 | U111: 0
C112: ESTERO | D112: I porto | E112: 8655000 | F112: 0.008869051189 | G112: 76761.63804 | H112: 2.46 | I112: 188833.6296 | J112: 566500.8887 | L112: 76762 | M112: 1 | O112: 0 | P112: 0 | R112: 0 | S112: 3 | T112: 0 | U112: 0
D113: II porto | E113: 8655000 | F113: 0.003196289454 | G113: 27663.88522 | H113: 3.28 | I113: 90737.54353 | J113: 272212.6306 | L113: 27664 | M113: 1 | O113: 0 | P113: 0 | R113: 0 | S113: 4 | T113: 0 | U113: 0
D114: III porto | E114: 8655000 | F114: 1.170601393e-05 | G114: 101.3155506 | H114: 4.51 | I114: 456.9331332 | J114: 1370.7994 | L114: 101 | M114: 1 | O114: 0 | P114: 0 | R114: 0 | S114: 5.5 | T114: 0 | U114: 0
F115: =SUM(F103:F114) -> 0.9996732585 | G115: =SUM(G103:G114) -> 8654999.853 | J115: =SUM(J103:J114) -> 11532811.53 | L115: =SUM(L103:L114) -> 8655001 | P115: =SUM(P103:P114) -> 0 | R115: =SUM(R103:R114) -> 0 | U115: =SUM(U103:U114) -> 0
B117: Raccomandata smart | C117: BACINI | D117: PORTI | E117: volumi totali | F117: % distrib. | G117: QTA' annuale | H117: tariffa IVA esclusa | I117: valore annuale | J117: VALORE triennale | L117: QTA' annuale | M117: % | N117: tariffa OFFERTA IVA esclusa | O117: valore annuale | P117: VALORE triennale | R117: QTA' annuale | S117: tariffa IVA esente | T117: valore annuale | U117: VALORE triennale
C118: AM | D118: I porto | E118: 4055000 | F118: 0.05381087331 | G118: 218219.247 | H118: 1.8 | I118: =G118*H118 -> 392794.6446 | J118: =I118*3 -> 1178383.934 | L118: =ROUND(G118*M118,0) -> 218219 | M118: =$P$99 -> 1 | O118: =L118*N118 -> 0 | P118: =O118*3 -> 0 | R118: =ROUND(G118-L118,0) -> 0 | S118: 2.2 | T118: =R118*S118 -> 0 | U118: =T118*3 -> 0
D119: II porto | E119: 4055000 | F119: 0.07084984334 | G119: 287304.7801 | H119: 2.13 | I119: 611959.1816 | J119: 1835877.545 | L119: =ROUND(G119*M119,0) -> 287305 | M119: 1 | O119: =L119*N119 -> 0 | P119: =O119*3 -> 0 | R119: =ROUND(G119-L119,0) -> 0 | S119: 2.6 | T119: =R119*S119 -> 0 | U119: =T119*3 -> 0
D120: III porto | E120: 4055000 | F120: 0.004231773723 | G120: 17160.84245 | H120: 2.17 | I120: 37239.02811 | J120: 111717.0843 | L120: 17161 | M120: 1 | O120: 0 | P120: 0 | R120: 0 | S120: 2.65 | T120: 0 | U120: 0
D121: IV porto | E121: 4055000 | F121: 8.220069003e-08 | G121: 0 | H121: 2.83 | I121: 0 | J121: 0 | L121: 0 | M121: 1 | O121: 0 | P121: 0 | R121: 0 | S121: 3.45 | T121: 0 | U121: 0
C122: CP | D122: I porto | E122: 4055000 | F122: 0.06531633949 | G122: 264877.3666 | H122: 2.05 | I122: 542998.6016 | J122: 1628995.805 | L122: 264877 | M122: 1 | O122: 0 | P122: 0 | R122: 0 | S122: 2.5 | T122: 0 | U122: 0
D123: II porto | E123: 4055000 | F123: 0.09646366055 | G123: 391171.9416 | H123: 2.38 | I123: 930989.221 | J123: 2792967.663 | L123: 391172 | M123: 1 | O123: 0 | P123: 0 | R123: 0 | S123: 2.9 | T123: 0 | U123: 0
D124: III porto | E124: 4055000 | F124: 0.005875047718 | G124: 23825.31849 | H124: 2.42 | I124: 57657.27076 | J124: 172971.8123 | L124: 23825 | M124: 1 | O124: 0 | P124: 0 | R124: 0 | S124: 2.95 | T124: 0 | U124: 0
D125: IV porto | E125: 4055000 | F125: 8.220069003e-08 | G125: 0.3333237981 | H125: 3.07 | I125: 1.02330406 | J125: 3.06991218 | L125: 0 | M125: 1 | O125: 0 | P125: 0 | R125: 0 | S125: 3.75 | T125: 0 | U125: 0
C126: EU | D126: I porto | E126: 4055000 | F126: 0.2938876882 | G126: 1191802.81 | H126: 2.62 | I126: 3122523.362 | J126: 9367570.086 | L126: 1191803 | M126: 1 | O126: 0 | P126: 0 | R126: 0 | S126: 3.2 | T126: 0 | U126: 0
D127: II porto | E127: 4055000 | F127: 0.3886710023 | G127: 1576108.451 | H127: 3.11 | I127: 4901697.282 | J127: 14705091.85 | L127: 1576108 | M127: 1 | O127: 0 | P127: 0 | R127: 0 | S127: 3.8 | T127: 0 | U127: 0
D128: III porto | E128: 4055000 | F128: 0.02084461538 | G128: 84527.91536 | H128: 3.16 | I128: 267108.2125 | J128: 801324.6376 | L128: 84528 | M128: 1 | O128: 0 | P128: 0 | R128: 0 | S128: 3.85 | T128: 0 | U128: 0
D129: IV porto | E129: 4055000 | F129: 8.220069003e-08 | G129: 1 | H129: 3.73 | I129: 3.73 | J129: 11.19 | L129: 1 | M129: 1 | O129: 0 | P129: 0 | R129: 0 | S129: 4.55 | T129: 0 | U129: 0
F130: =SUM(F118:F129) -> 0.9999510906 | G130: =SUM(G118:G129) -> 4055000.006 | J130: =SUM(J118:J129) -> 32594914.67 | L130: =SUM(L118:L129) -> 4054999 | P130: =SUM(P118:P129) -> 0 | R130: =G130-L130 -> 1.005692563 | U130: =SUM(U118:U129) -> 0
B132: Servizio T & T solo Raccomandata | G132: QTA' annuale | H132: tariffa IVA esclusa | I132: valore annuale | J132: VALORE triennale | L132: QTA' annuale | M132: % | N132: tariffa OFFERTA IVA esclusa | O132: valore annuale | P132: VALORE triennale | R132: QTA' annuale | S132: tariffa IVA esente | T132: valore annuale | U132: VALORE triennale
G133: 1945000 | H133: 0.02 | I133: =G133*H133 -> 38900 | J133: =I133*3 -> 116700 | L133: =G133*M133 -> 1945000 | M133: =$P$99 -> 1 | O133: =L133*N133 -> 0 | P133: =O133*3 -> 0 | R133: =G133-L133 -> 0 | S133: 0.02 | T133: =R133*S133 -> 0 | U133: =T133*3 -> 0
B135: Avviso di Ricevimento Raccomandata IT | G135: QTA' annuale | H135: tariffa IVA esclusa | I135: valore annuale | J135: VALORE triennale | L135: QTA' annuale | M135: % | N135: tariffa OFFERTA IVA esclusa | O135: valore annuale | P135: VALORE triennale | R135: QTA' annuale | S135: tariffa IVA esente | T135: valore annuale | U135: VALORE triennale
G136: 1805000 | H136: 0.57 | I136: =G136*H136 -> 1028850 | J136: =I136*3 -> 3086550 | L136: =G136*M136 -> 1805000 | M136: =$P$99 -> 1 | O136: =L136*N136 -> 0 | P136: =O136*3 -> 0 | R136: =G136-L136 -> 0 | S136: 0.7 | T136: =R136*S136 -> 0 | U136: =T136*3 -> 0
B138: BASE D'ASTA Lotto 3 | J138: =ROUND(J115+J130+J133+J136,0) -> 47330976 | L138: Valore recapito diretto | P138: =P115+P130+P133+P136 -> 0 | R138: Valore Servizio Universale | U138: =U115+U130+U133+U136 -> 0
N140: OFFERTA ECONOMICA Lotto 2 | S140: =P138+U138 -> 0
P142: ribasso offerto | U142: =(J138-S140)/J138 -> 1
B146: COSTO DEL PERSONALE
B148: Valutato sulla base dei minimi salariali definiti dalla contrattazione collettiva nazionale di settore tra le organizzazioni sindacali dei lavoratori e le organizzazioni dei datori di lavoro comparativamente più rappresentative sul piano nazionale e delle voci retributive previste dalla contrattazione integrativa di secondo livello
B150: (in cifre)
B152: (in lettere)
B154: gli importi sono IVA esclusa.
B158: Declaratoria obbligatoria dei CONTRATTI COLLETTIVI NAZIONALI, della CONTRATTAZIONE INTEGRATIVA DI SECONDO LIVELLO e degli ACCORDI COLLETTIVI applicati al personale preposto all'Appalto
D160: Tipologia, settore e denominazione della fonte di contrattazione collettiva e di contrattazione integrativa di secondo livello | L160: Data di stipula | P160: Rinnovo (eventuale) | S160: Data di efficacia finale
B161: 1
B162: 2
B163: 3
B164: 4
B165: 5
B166: 6
B169: Dichiara che beneficia di sgravi salariali applicati al personale preposto all’appalto in virtù dei seguenti riferimenti normativi e regolamentari:
B173: COSTI IN MATERIA DI SALUTE E SICUREZZA
B175: Costi per le misure di adempimento delle disposizioni in materia di salute e sicurezza nei luoghi di lavoro
B177: (in cifre)
B179: (in lettere)
B181: gli importi sono IVA esclusa.
B190: DICHIARAZIONI
B192: Il sottoscritto dichiara inoltre che:
B194: la presente offerta è irrevocabile ed impegnativa sino al 180° (centottantesimo) giorno successivo alla data di scadenza del termine di presentazione;
B195: è consapevole che, in caso di indicazione di offerta recante un numero di cifre decimali dopo la virgola superiore a due, saranno considerate esclusivamente le prime due cifre decimali, senza procedere ad alcun arrotondamento;
B196: è consapevole che in caso di discordanza tra i prezzi unitari e il valore complessivamente offerto, i prezzi unitari prevarranno sul valore complessivo e, di conseguenza, si provvederà a rideterminare l’esatto valore complessivo, fermi restando i prezzi unitari offerti;
B197: è consapevole che i prezzi offerti sono omnicomprensivi di quanto previsto negli atti di gara e, comunque, i corrispettivi spettanti in caso di aggiudicazione rispettano le disposizioni vigenti in materia di costo del lavoro e di costi della sicurezza, secondo i valori sopra esposti;
B198: è consapevole che detta offerta non vincolerà in alcun modo l’Istituto;
B199: ha preso cognizione di tutte le circostanze generali e speciali che possono interessare l’esecuzione di tutte le prestazioni oggetto del contratto, e di tali circostanze ha tenuto conto nella determinazione del prezzo offerto, ritenuto remunerativo.
G202: luogo | P202: data
D206: operatore economico | P206: sottoscrizione
B209: (in caso di RTI e consorzi costituendi, la presente Offerta Economica deve essere sottoscritta da tutti gli operatori raggruppati o consorziati)
D213: operatore economico | P213: sottoscrizione
D217: operatore economico | P217: sottoscrizione
D221: operatore economico | P221: sottoscrizione
D225: operatore economico | P225: sottoscrizione
